Workbook

Sheet Rangliste 2022
A4: Rangliste | C4: PCR Sylvester-Training 2022 mit Raclette Essen
A6: R | B6: Schütze | C6: JG | D6: Scheibe P10 | O6: B10 | Y6: Total | Z6: Total | AA6: End-
B7: Name / Vorname | C7: JG | D7: 1 | E7: 2 | F7: 3 | G7: 4 | H7: 5 | I7: 6 | J7: 7 | K7: 8 | L7: 9 | M7: 10 | N7: 102 | O7: 11 | P7: 12 | Q7: 13 | R7: 14 | S7: 15 | T7: 16 | U7: 17 | V7: 18 | W7: 19 | X7: 20 | Y7: P 10 | Z7: B 10 | AA7: Total
A8: 1 | B8: Zirgel Pascal | C8: 64 | D8: 8 | E8: 8 | F8: 10 | G8: 10 | H8: 6 | I8: 10 | J8: 10 | K8: 9 | L8: 9 | M8: 7 | O8: 9 | P8: 10 | Q8: 9 | R8: 6 | S8: 10 | T8: 10 | U8: 10 | V8: 10 | W8: 9 | X8: 8 | Y8: =SUM(Tabelle3[[#This Row],[1]:[10]]) -> 87 | Z8: =SUM(Tabelle3[[#This Row],[11]:[20]]) -> 91 | AA8: =SUM(Tabelle3[[#This Row],[P 10]:[B 10]]) -> 178
A9: 2 | B9: Frey Christoph | C9: 65 | D9: 8 | E9: 7 | F9: 8 | G9: 10 | H9: 9 | I9: 10 | J9: 9 | K9: 9 | L9: 8 | M9: 8 | O9: 9 | P9: 9 | Q9: 9 | R9: 8 | S9: 8 | T9: 10 | U9: 9 | V9: 8 | W9: 8 | X9: 7 | Y9: =SUM(Tabelle3[[#This Row],[1]:[10]]) -> 86 | Z9: =SUM(Tabelle3[[#This Row],[11]:[20]]) -> 85 | AA9: =SUM(Tabelle3[[#This Row],[P 10]:[B 10]]) -> 171
A10: 3 | B10: Fischlin Guido | C10: 52 | D10: 9 | E10: 9 | F10: 9 | G10: 6 | H10: 10 | I10: 10 | J10: 10 | K10: 10 | L10: 9 | M10: 9 | O10: 7 | P10: 10 | Q10: 7 | R10: 8 | S10: 8 | T10: 9 | U10: 9 | V10: 8 | W10: 7 | X10: 6 | Y10: =SUM(Tabelle3[[#This Row],[1]:[10]]) -> 91 | Z10: =SUM(Tabelle3[[#This Row],[11]:[20]]) -> 79 | AA10: =SUM(Tabelle3[[#This Row],[P 10]:[B 10]]) -> 170
A11: 4 | B11: Siegenthaler Christoph | C11: 72 | D11: 8 | E11: 9 | F11: 9 | G11: 9 | H11: 9 | I11: 10 | J11: 8 | K11: 7 | L11: 7 | M11: 7 | O11: 9 | P11: 9 | Q11: 8 | R11: 9 | S11: 9 | T11: 9 | U11: 9 | V11: 9 | W11: 8 | X11: 7 | Y11: =SUM(Tabelle3[[#This Row],[1]:[10]]) -> 83 | Z11: =SUM(Tabelle3[[#This Row],[11]:[20]]) -> 86 | AA11: =SUM(Tabelle3[[#This Row],[P 10]:[B 10]]) -> 169
A12: 5 | B12: Bart Robert | C12: 50 | D12: 9 | E12: 9 | F12: 9 | G12: 8 | H12: 9 | I12: 9 | J12: 9 | K12: 8 | L12: 8 | M12: 7 | O12: 9 | P12: 7 | Q12: 9 | R12: 8 | S12: 6 | T12: 10 | U12: 9 | V12: 9 | W12: 8 | X12: 8 | Y12: =SUM(Tabelle3[[#This Row],[1]:[10]]) -> 85 | Z12: =SUM(Tabelle3[[#This Row],[11]:[20]]) -> 83 | AA12: =SUM(Tabelle3[[#This Row],[P 10]:[B 10]]) -> 168
A13: 6 | B13: Berger Heinz | C13: 58 | D13: 7 | E13: 9 | F13: 8 | G13: 8 | H13: 8 | I13: 10 | J13: 8 | K13: 7 | L13: 7 | M13: 3 | O13: 9 | P13: 6 | Q13: 10 | R13: 9 | S13: 8 | T13: 9 | U13: 9 | V13: 8 | W13: 8 | X13: 7 | Y13: =SUM(Tabelle3[[#This Row],[1]:[10]]) -> 75 | Z13: =SUM(Tabelle3[[#This Row],[11]:[20]]) -> 83 | AA13: =SUM(Tabelle3[[#This Row],[P 10]:[B 10]]) -> 158
A14: 7 | B14: Prade Adalbert | C14: 68 | D14: 6 | E14: 8 | F14: 10 | G14: 8 | H14: 8 | I14: 9 | J14: 9 | K14: 7 | L14: 7 | M14: 3 | O14: 9 | P14: 10 | Q14: 10 | R14: 7 | S14: 7 | T14: 9 | U14: 7 | V14: 7 | W14: 7 | X14: 5 | Y14: =SUM(Tabelle3[[#This Row],[1]:[10]]) -> 75 | Z14: =SUM(Tabelle3[[#This Row],[11]:[20]]) -> 78 | AA14: =SUM(Tabelle3[[#This Row],[P 10]:[B 10]]) -> 153
A15: 8 | B15: Vaiti Lumturi | C15: 61 | D15: 9 | E15: 7 | F15: 10 | G15: 10 | H15: 8 | I15: 10 | J15: 10 | K15: 9 | L15: 9 | M15: 5 | O15: 7 | P15: 0 | Q15: 9 | R15: 3 | S15: 9 | T15: 9 | U15: 8 | V15: 7 | W15: 6 | X15: 6 | Y15: =SUM(Tabelle3[[#This Row],[1]:[10]]) -> 87 | Z15: =SUM(Tabelle3[[#This Row],[11]:[20]]) -> 64 | AA15: =SUM(Tabelle3[[#This Row],[P 10]:[B 10]]) -> 151
A16: 9 | B16: Berger Carmen | D16: 9 | E16: 7 | F16: 5 | G16: 7 | H16: 2 | I16: 10 | J16: 10 | K16: 8 | L16: 8 | M16: 4 | O16: 8 | P16: 6 | Q16: 7 | R16: 8 | S16: 7 | T16: 8 | U16: 8 | V16: 8 | W16: 6 | X16: 5 | Y16: =SUM(Tabelle3[[#This Row],[1]:[10]]) -> 70 | Z16: =SUM(Tabelle3[[#This Row],[11]:[20]]) -> 71 | AA16: =SUM(Tabelle3[[#This Row],[P 10]:[B 10]]) -> 141
A17: 10 | B17: Gonzalo Alfaro | C17: 73 | D17: 4 | E17: 9 | F17: 8 | G17: 8 | H17: 7 | I17: 9 | J17: 9 | K17: 7 | L17: 5 | M17: 3 | O17: 4 | P17: 7 | Q17: 9 | R17: 7 | S17: 7 | T17: 10 | U17: 8 | V17: 7 | W17: 6 | X17: 4 | Y17: =SUM(Tabelle3[[#This Row],[1]:[10]]) -> 69 | Z17: =SUM(Tabelle3[[#This Row],[11]:[20]]) -> 69 | AA17: =SUM(Tabelle3[[#This Row],[P 10]:[B 10]]) -> 138
A18: 11 | B18: Schaffner Gabriel | C18: 61 | D18: 8 | E18: 6 | F18: 9 | G18: 8 | H18: 5 | I18: 8 | J18: 7 | K18: 6 | L18: 6 | M18: 2 | O18: 9 | P18: 5 | Q18: 6 | R18: 3 | S18: 3 | T18: 10 | U18: 9 | V18: 8 | W18: 5 | X18: 5 | Y18: =SUM(Tabelle3[[#This Row],[1]:[10]]) -> 65 | Z18: =SUM(Tabelle3[[#This Row],[11]:[20]]) -> 63 | AA18: =SUM(Tabelle3[[#This Row],[P 10]:[B 10]]) -> 128
A19: 12 | B19: Bäckman Jonas | C19: 67 | D19: 3 | E19: 6 | F19: 10 | G19: 5 | H19: 10 | I19: 9 | J19: 8 | K19: 8 | L19: 5 | M19: 6 | O19: 7 | P19: 7 | Q19: 10 | R19: 9 | S19: 0 | T19: 8 | U19: 6 | V19: 5 | W19: 4 | X19: 1 | Y19: =SUM(Tabelle3[[#This Row],[1]:[10]]) -> 70 | Z19: =SUM(Tabelle3[[#This Row],[11]:[20]]) -> 57 | AA19: =SUM(Tabelle3[[#This Row],[P 10]:[B 10]]) -> 127
A20: 13 | B20: Kilchenmann Fredi | C20: 61 | Y20: =SUM(Tabelle3[[#This Row],[1]:[10]]) -> 0 | Z20: =SUM(Tabelle3[[#This Row],[11]:[20]]) -> 0 | AA20: =SUM(Tabelle3[[#This Row],[P 10]:[B 10]]) -> 0
A21: 14 | B21: Lässer Alain | C21: 78 | Y21: =SUM(Tabelle3[[#This Row],[1]:[10]]) -> 0 | Z21: =SUM(Tabelle3[[#This Row],[11]:[20]]) -> 0 | AA21: =SUM(Tabelle3[[#This Row],[P 10]:[B 10]]) -> 0
A22: 15 | B22: Amrein Beat | C22: 47 | D22: 10 | E22: 10 | F22: 10 | G22: 10 | H22: 10 | I22: 10 | J22: 10 | K22: 10 | L22: 10 | M22: 10 | O22: 10 | P22: 10 | Q22: 10 | R22: 10 | S22: 10 | T22: 10 | U22: 10 | V22: 10 | W22: 10 | X22: 10 | Y22: =SUM(Tabelle3[[#This Row],[1]:[10]]) -> 100 | Z22: =SUM(Tabelle3[[#This Row],[11]:[20]]) -> 100 | AA22: =SUM(Tabelle3[[#This Row],[P 10]:[B 10]]) -> 200
A23: 16 | B23: Baier Franz | C23: 52 | D23: 10 | E23: 10 | F23: 10 | G23: 10 | H23: 10 | I23: 10 | J23: 10 | K23: 10 | L23: 10 | M23: 10 | O23: 10 | P23: 10 | Q23: 10 | R23: 10 | S23: 10 | T23: 10 | U23: 10 | V23: 10 | W23: 10 | X23: 10 | Y23: =SUM(Tabelle3[[#This Row],[1]:[10]]) -> 100 | Z23: =SUM(Tabelle3[[#This Row],[11]:[20]]) -> 100 | AA23: =SUM(Tabelle3[[#This Row],[P 10]:[B 10]]) -> 200
A24: 17 | B24: Kaspar Manuel | C24: 90 | D24: 10 | E24: 10 | F24: 10 | G24: 10 | H24: 10 | I24: 10 | J24: 10 | K24: 10 | L24: 10 | M24: 10 | O24: 10 | P24: 10 | Q24: 10 | R24: 10 | S24: 10 | T24: 10 | U24: 10 | V24: 10 | W24: 10 | X24: 10 | Y24: =SUM(Tabelle3[[#This Row],[1]:[10]]) -> 100 | Z24: =SUM(Tabelle3[[#This Row],[11]:[20]]) -> 100 | AA24: =SUM(Tabelle3[[#This Row],[P 10]:[B 10]]) -> 200
A25: 18 | B25: Kramer James | C25: 47 | D25: 10 | E25: 10 | F25: 10 | G25: 10 | H25: 10 | I25: 10 | J25: 10 | K25: 10 | L25: 10 | M25: 10 | O25: 10 | P25: 10 | Q25: 10 | R25: 10 | S25: 10 | T25: 10 | U25: 10 | V25: 10 | W25: 10 | X25: 10 | Y25: =SUM(Tabelle3[[#This Row],[1]:[10]]) -> 100 | Z25: =SUM(Tabelle3[[#This Row],[11]:[20]]) -> 100 | AA25: =SUM(Tabelle3[[#This Row],[P 10]:[B 10]]) -> 200
A26: 19 | B26: Nyffeler Werner | C26: 46 | D26: 10 | E26: 10 | F26: 10 | G26: 10 | H26: 10 | I26: 10 | J26: 10 | K26: 10 | L26: 10 | M26: 10 | O26: 10 | P26: 10 | Q26: 10 | R26: 10 | S26: 10 | T26: 10 | U26: 10 | V26: 10 | W26: 10 | X26: 10 | Y26: =SUM(Tabelle3[[#This Row],[1]:[10]]) -> 100 | Z26: =SUM(Tabelle3[[#This Row],[11]:[20]]) -> 100 | AA26: =SUM(Tabelle3[[#This Row],[P 10]:[B 10]]) -> 200
A27: 20 | B27: Pechlaner Andreas | C27: 63 | D27: 10 | E27: 10 | F27: 10 | G27: 10 | H27: 10 | I27: 10 | J27: 10 | K27: 10 | L27: 10 | M27: 10 | O27: 10 | P27: 10 | Q27: 10 | R27: 10 | S27: 10 | T27: 10 | U27: 10 | V27: 10 | W27: 10 | X27: 10 | Y27: =SUM(Tabelle3[[#This Row],[1]:[10]]) -> 100 | Z27: =SUM(Tabelle3[[#This Row],[11]:[20]]) -> 100 | AA27: =SUM(Tabelle3[[#This Row],[P 10]:[B 10]]) -> 200
A28: 21 | B28: Sager Micha | C28: 88 | D28: 10 | E28: 10 | F28: 10 | G28: 10 | H28: 10 | I28: 10 | J28: 10 | K28: 10 | L28: 10 | M28: 10 | O28: 10 | P28: 10 | Q28: 10 | R28: 10 | S28: 10 | T28: 10 | U28: 10 | V28: 10 | W28: 10 | X28: 10 | Y28: =SUM(Tabelle3[[#This Row],[1]:[10]]) -> 100 | Z28: =SUM(Tabelle3[[#This Row],[11]:[20]]) -> 100 | AA28: =SUM(Tabelle3[[#This Row],[P 10]:[B 10]]) -> 200
A29: 22 | B29: Schärer Hans | C29: 54 | D29: 10 | E29: 10 | F29: 10 | G29: 10 | H29: 10 | I29: 10 | J29: 10 | K29: 10 | L29: 10 | M29: 10 | O29: 10 | P29: 10 | Q29: 10 | R29: 10 | S29: 10 | T29: 10 | U29: 10 | V29: 10 | W29: 10 | X29: 10 | Y29: =SUM(Tabelle3[[#This Row],[1]:[10]]) -> 100 | Z29: =SUM(Tabelle3[[#This Row],[11]:[20]]) -> 100 | AA29: =SUM(Tabelle3[[#This Row],[P 10]:[B 10]]) -> 200
A30: 23 | B30: Schärli Patrick | C30: 84 | D30: 10 | E30: 10 | F30: 10 | G30: 10 | H30: 10 | I30: 10 | J30: 10 | K30: 10 | L30: 10 | M30: 10 | O30: 10 | P30: 10 | Q30: 10 | R30: 10 | S30: 10 | T30: 10 | U30: 10 | V30: 10 | W30: 10 | X30: 10 | Y30: =SUM(Tabelle3[[#This Row],[1]:[10]]) -> 100 | Z30: =SUM(Tabelle3[[#This Row],[11]:[20]]) -> 100 | AA30: =SUM(Tabelle3[[#This Row],[P 10]:[B 10]]) -> 200
A31: 24 | B31: Sommerhalder Kurt | C31: 45 | D31: 10 | E31: 10 | F31: 10 | G31: 10 | H31: 10 | I31: 10 | J31: 10 | K31: 10 | L31: 10 | M31: 10 | O31: 10 | P31: 10 | Q31: 10 | R31: 10 | S31: 10 | T31: 10 | U31: 10 | V31: 10 | W31: 10 | X31: 10 | Y31: =SUM(Tabelle3[[#This Row],[1]:[10]]) -> 100 | Z31: =SUM(Tabelle3[[#This Row],[11]:[20]]) -> 100 | AA31: =SUM(Tabelle3[[#This Row],[P 10]:[B 10]]) -> 200
A32: 25 | B32: Viel Bruno | C32: 46 | D32: 10 | E32: 10 | F32: 10 | G32: 10 | H32: 10 | I32: 10 | J32: 10 | K32: 10 | L32: 10 | M32: 10 | O32: 10 | P32: 10 | Q32: 10 | R32: 10 | S32: 10 | T32: 10 | U32: 10 | V32: 10 | W32: 10 | X32: 10 | Y32: =SUM(Tabelle3[[#This Row],[1]:[10]]) -> 100 | Z32: =SUM(Tabelle3[[#This Row],[11]:[20]]) -> 100 | AA32: =SUM(Tabelle3[[#This Row],[P 10]:[B 10]]) -> 200
A33: 26 | B33: Voramwald Walter | C33: 51 | D33: 10 | E33: 10 | F33: 10 | G33: 10 | H33: 10 | I33: 10 | J33: 10 | K33: 10 | L33: 10 | M33: 10 | O33: 10 | P33: 10 | Q33: 10 | R33: 10 | S33: 10 | T33: 10 | U33: 10 | V33: 10 | W33: 10 | X33: 10 | Y33: =SUM(Tabelle3[[#This Row],[1]:[10]]) -> 100 | Z33: =SUM(Tabelle3[[#This Row],[11]:[20]]) -> 100 | AA33: =SUM(Tabelle3[[#This Row],[P 10]:[B 10]]) -> 200
A34: 27 | B34: Wälty Willi | C34: 46 | D34: 10 | E34: 10 | F34: 10 | G34: 10 | H34: 10 | I34: 10 | J34: 10 | K34: 10 | L34: 10 | M34: 10 | O34: 10 | P34: 10 | Q34: 10 | R34: 10 | S34: 10 | T34: 10 | U34: 10 | V34: 10 | W34: 10 | X34: 10 | Y34: =SUM(Tabelle3[[#This Row],[1]:[10]]) -> 100 | Z34: =SUM(Tabelle3[[#This Row],[11]:[20]]) -> 100 | AA34: =SUM(Tabelle3[[#This Row],[P 10]:[B 10]]) -> 200

Sheet Standblatt
B1: P 10 | C1: 5 Einzeln in je 30 sec. | I1: 5 Serie in 60 sec.
A4: Name: | C4: 1 | D4: 2 | E4: 3 | F4: 4 | G4: 5 | I4: 6 | J4: 7 | K4: 8 | L4: 9 | M4: 10
A7: Name: | C7: 1 | D7: 2 | E7: 3 | F7: 4 | G7: 5 | I7: 6 | J7: 7 | K7: 8 | L7: 9 | M7: 10
A10: Name: | C10: 1 | D10: 2 | E10: 3 | F10: 4 | G10: 5 | I10: 6 | J10: 7 | K10: 8 | L10: 9 | M10: 10
B14: B 10 | C14: 5 Einzeln in je 30 sec. | I14: 5 Serie in 60 sec.
A16: Name: | C16: 1 | D16: 2 | E16: 3 | F16: 4 | G16: 5 | I16: 6 | J16: 7 | K16: 8 | L16: 9 | M16: 10
A19: Name: | C19: 1 | D19: 2 | E19: 3 | F19: 4 | G19: 5 | I19: 6 | J19: 7 | K19: 8 | L19: 9 | M19: 10
A22: Name: | C22: 1 | D22: 2 | E22: 3 | F22: 4 | G22: 5 | I22: 6 | J22: 7 | K22: 8 | L22: 9 | M22: 10
